Cogmind - Beta 13 @@@ ROGUE MODE // 2024.03.11 @ 20:05:30 Player: Grim Result: Destroyed by S-10 Pest with Light Assault Rifle Performance ------------- Evolutions (2) 1000 Regions Visited (4) 800 Robots Destroyed (27) 135 Value Destroyed (859) 859 Prototype IDs (2) 40 Alien Tech Used (0) 0 Bonus (0) 0 TOTAL SCORE: 2834 Bonus ------- None Cogmind --------- Core Integrity 0/550 Matter 290/300 Energy 88/100 System Corruption 0% Temperature Cool (0) Movement Core (700) Ox13 Location -8/Storage Parts ------- > --- POWER (2) -------- (None) > --- PROPULSION (4) --- (None) > --- UTILITY (3) ------ High-capacity Storage Unit > --- WEAPON (2) ------- (None) > --- INVENTORY (20) --- Terrain Scanner ECM Suite EM Shotgun Peak State ------------ > --- POWER ------------ Light Nuclear Core > --- PROPULSION ------- Improved Treads Aluminum Leg Aluminum Leg Hover Unit > --- UTILITY ---------- High-capacity Storage Unit Compact Battery Actuator Array > --- WEAPON ----------- EM Shotgun Light Assault Rifle > --- INVENTORY -------- Compact Wheel Heat Sink Small Matter Pod Terrain Scanner ECM Suite Heavy EM Pulse Gun EM Shotgun EM Shotgun [Rating: 19] Favorites ----------- Power Light Deuterium Engine Engine Light Deuterium Engine Power Core Light Nuclear Core Propulsion Aluminum Leg Treads Improved Treads Leg Aluminum Leg Wheel Compact Wheel Hover Unit Hover Unit Utility High-capacity Storage Unit Device Actuator Array Storage High-capacity Storage Unit Weapon Mini Grenade Launcher Energy Gun EM Shotgun Energy Cannon Beam Cannon Ballistic Gun Light Assault Rifle Launcher Mini Grenade Launcher Slashing Weapon Scythe Special Melee Weapon Datajack Build | -11 -10 -9 -8 -8 ------- Run | Yrd Mat Mat Mat Sto Slots Evolved 4 | . . 2 2 . Power 1 | . . . 1 . Propulsion 2 | . . 1 1 . Utility 1 | . . 1 . . Weapon . | . . . . . Parts Attached 46 | 6 8 20 5 7 Power 8 | 1 1 4 1 1 Engine 5 | 1 . 2 1 1 Core 3 | . 1 2 . . Reactor . | . . . . . Propulsion 14 | 2 2 7 3 . Treads 1 | . . . 1 . Leg 6 | . . 5 1 . Wheel 4 | 2 1 . 1 . Hover 3 | . 1 2 . . Flight . | . . . . . Utility 8 | 1 2 3 . 2 Device 4 | . 1 2 . 1 Storage 4 | 1 1 1 . 1 Processor . | . . . . . Hackware . | . . . . . Protection . | . . . . . Artifact . | . . . . . Weapon 16 | 2 3 6 1 4 Energy Gun 9 | 1 1 3 . 4 Energy Cannon 1 | . 1 . . . Ballistic Gun 3 | 1 . 2 . . Ballistic Cannon . | . . . . . Launcher 1 | . . . 1 . Special Weapon . | . . . . . Impact Weapon . | . . . . . Slashing Weapon 1 | . . 1 . . Piercing Weapon . | . . . . . Special Melee Weapon 1 | . 1 . . . Unidentified Prototypes . | . . . . . Parts Lost 32 | . 3 12 9 8 Power 7 | . 1 3 2 1 Propulsion 9 | . . 4 5 . Utility 4 | . . 1 1 2 Weapon 12 | . 2 4 1 5 Highest Loss Streak 9 | . 3 9 4 7 To Critical Strikes . | . . . . . Average Slot Usage (%) 70 | . 85 84 69 48 Engine 4 | . 7 1 5 7 Core 3 | . 5 7 1 . Leg 6 | . . 11 11 . Wheel 7 | . 28 6 6 . Hover 2 | . . 5 1 . Device 8 | . 4 11 9 8 Storage 18 | . 14 21 17 15 Energy Gun 7 | . 9 9 2 7 Energy Cannon 2 | . 3 4 . . Ballistic Gun 3 | . 8 4 3 . Launcher 4 | . . . 7 8 Naked Turns . | . . . . . Heaviest Build 55 | 12 51 55 55 52 Greatest Support 26 | 26 26 26 20 3 Greatest Overweight (x) 17 | . 1 17 17 17 Average Overweight (x) 3 | . . 2 4 15 Largest Inventory Capacity 20 | 8 20 20 20 20 Average Capacity 18 | 6 11 20 20 20 Most Carried 11 | 2 6 11 10 9 Average Carried 6 | . 2 7 8 5 Final Capacity 20 | 8 20 20 20 20 Final Carried 8 | 1 6 8 8 3 Class Distribution -------------------- 77% | Mutant 22% | Scavenger-Mutant Dominant Class ---------------- Mutant | -10/Materials Mutant | -9/Materials Mutant | -8/Materials Mutant | -8/Storage Resources | -11 -10 -9 -8 -8 ----------- Run | Yrd Mat Mat Mat Sto Matter Collected 660 | 216 146 153 42 103 Remotely . | . . . . . Salvage Created 932 | . 262 491 99 80 Parts 57 | . 25 19 5 8 Haulers Intercepted . | . . . . . Recyclers Shooed . | . . . . . Parts Field Recycled . | . . . . . Retrieved Matter . | . . . . . Parts Self-Destructed . | . . . . . Prevented . | . . . . . Kills | -11 -10 -9 -8 -8 ------- Run | Yrd Mat Mat Mat Sto Combat Hostiles Destroyed 22 | . 8 8 4 2 Melee 1 | . . 1 . . Guns 12 | . 7 4 1 . Cannons 2 | . . 2 . . AOE 6 | . 1 . 3 2 Classes Destroyed 8 | . 4 2 2 . Builder 2 | . 2 . . . Recycler 1 | . . 1 . . Operator 1 | . 1 . . . Watcher 1 | . . . 1 . Swarmer 5 | . 5 . . . Grunt 13 | . 3 6 3 1 Duelist 1 | . . . 1 . Sentry 3 | . . 2 . 1 Best Kill Streak 6 | . 6 3 3 1 Combat Bots Only 5 | . 5 3 3 1 Max Kills in Single Turn 2 | . 2 1 2 1 Gunslinging . | . . . . . Exploded 1 | . 1 . 1 1 Melee 1 | . . 1 . . Uniques/NPCs Destroyed . | . . . . . Combat | -11 -10 -9 -8 -8 -------- Run | Yrd Mat Mat Mat Sto Hostile Shots Fired 299 | . 45 129 30 95 Missed 78 | . 9 32 4 33 Damage Taken 2963 | . 377 1173 732 681 Core 1030 | . 117 356 198 359 Absorbed by Shields . | . . . . . Core Remaining (%) 54 | 100 53 11 . . Volleys Fired 86 | . 27 48 7 4 Largest 2 | . 2 2 2 2 Hottest 116 | . 100 116 50 90 Shots Fired 125 | . 36 71 12 6 Gun 85 | . 32 45 5 3 Cannon 30 | . 4 26 . . Launcher 10 | . . . 7 3 Special . | . . . . . Kinetic 28 | . 19 4 5 . Thermal 52 | . 4 48 . . Explosive 10 | . . . 7 3 Electromagnetic 35 | . 13 19 . 3 Robot Hit Streak 11 | . 4 10 11 5 Robot Miss Streak 5 | . 4 5 1 2 Penetration Max . | . . . . . Secondary Targets . | . . . . . Shots Hit Robots 79 | . 15 49 11 4 Core Hits 47 | . 13 15 14 5 Critical Kills . | . . . . . Critical Parts Destroyed . | . . . . . Critical Strikes 3 | . . 3 . . Burn 2 | . . 2 . . Corrupt 1 | . . 1 . . Melee Attacks 5 | . . 5 . . Impact . | . . . . . Slashing 5 | . . 5 . . Piercing . | . . . . . Sneak Attacks . | . . . . . Combat Hostiles . | . . . . . Follow-up Attacks . | . . . . . Damage Inflicted 2050 | . 379 851 657 163 Guns 771 | . 270 431 40 30 Cannons 297 | . . 297 . . Explosions 859 | . 109 . 617 133 Melee 123 | . . 123 . . Ramming . | . . . . . Kinetic 226 | . 164 22 40 . Thermal 654 | . 109 545 . . Explosive 750 | . . . 617 133 Electromagnetic 297 | . 106 161 . 30 Impact . | . . . . . Slashing 123 | . . 123 . . Piercing . | . . . . . Highest Corruption . | . . . . . Average Corruption . | . . . . . Corruption Purged . | . . . . . Corruption Blocked . | . . . . . Overload Shots . | . . . . . Overflow Damage 95 | . 16 . 48 31 Projectiles . | . . . . . Explosions 95 | . 16 . 48 31 Melee . | . . . . . Knockbacks . | . . . . . Impact . | . . . . . Kinetic . | . . . . . Secondary . | . . . . . Self-Inflicted Damage 340 | . . . 266 74 Shots 10 | . . . 8 2 Rammed . | . . . . . Targets Rammed . | . . . . . Kicked . | . . . . . Crushed . | . . . . . Highest Temperature 73 | . 6 73 22 8 Average Temperature 13 | . 3 15 11 7 Received Heat Transfer 1155 | . 135 714 216 90 Siege Activations . | . . . . . Robots Corrupted . | . . . . . Combat Hostiles . | . . . . . Parts Fried . | . . . . . Impact Corruptions . | . . . . . Robots Melted 1 | . . 1 . . Combat Hostiles 1 | . . 1 . . Parts Melted 2 | . . 2 . . Heat Transferred 1556 | . 150 1406 . . Parts Sabotaged . | . . . . . Parts Stolen . | . . . . . Parts Stripped . | . . . . . Power Chain Reactions 1 | . 1 . . . Alert | -11 -10 -9 -8 -8 ------- Run | Yrd Mat Mat Mat Sto Peak Influence 268 | . 216 268 185 92 Initial 91 | . . 91 26 . Average 90 | . 114 129 123 9 Maximum Alert Level 1 | . 1 1 . . Low Security (%) 89 | 100 87 74 100 100 Level 1 10 | . 12 25 . . Level 2 . | . . . . . Level 3 . | . . . . . Level 4 . | . . . . . Level 5 . | . . . . . High Security . | . . . . . Max Security . | . . . . . Squads Dispatched 3 | . . 2 . 1 Investigation 1 | . . 1 . . Extermination . | . . . . . Reinforcement 2 | . . 1 . 1 Assault . | . . . . . Garrison . | . . . . . Intercept . | . . . . . Searches Triggered . | . . . . . Construction Impeded . | . . . . . Haulers Reinforced . | . . . . . Active Scanning Responses . | . . . . . Cargo Convoy Interrupts . | . . . . . Stealth | -11 -10 -9 -8 -8 --------- Run | Yrd Mat Mat Mat Sto Distress Signals 4 | . 1 . 2 1 Communications Jammed . | . . . . . Distress Signals . | . . . . . Times Spotted 41 | . 11 9 8 13 Peak Tracking Total 9 | . 5 3 4 9 Tactical Retreats 2 | . . 1 1 . Traps | -11 -10 -9 -8 -8 ------- Run | Yrd Mat Mat Mat Sto Traps Triggered 4 | . . 3 . 1 Indirectly . | . . . . . Trap Hack Attempts . | . . . . . Triggered . | . . . . . Disarmed . | . . . . . Reprogrammed . | . . . . . Reused . | . . . . . Traps Extracted . | . . . . . Installed . | . . . . . Triggered . | . . . . . Machines | -11 -10 -9 -8 -8 ---------- Run | Yrd Mat Mat Mat Sto Machines Disabled 5 | . 1 3 1 . Max in Single Turn 1 | . 1 1 1 . Machines Repaired . | . . . . . Machines Dismantled . | . . . . . Machines Sabotaged . | . . . . . Overloaded Fab Kills . | . . . . . Hacking | -11 -10 -9 -8 -8 --------- Run | Yrd Mat Mat Mat Sto Machines Accessed 2 | . 1 . 1 . Terminals 1 | . 1 . . . Fabricators . | . . . . . Repair Stations 1 | . . . 1 . Recycling Units . | . . . . . Scanalyzers . | . . . . . Garrison Access . | . . . . . Total Hacks 4 | . 2 . 2 . Successful 4 | . 2 . 2 . Failed . | . . . . . Catastrophic . | . . . . . Database Lockouts . | . . . . . Manual . | . . . . . Terminals 2 | . 2 . . . Fabricators . | . . . . . Repair Stations 2 | . . . 2 . Recycling Units . | . . . . . Scanalyzers . | . . . . . Garrison Access . | . . . . . Terminal Hacks 2 | . 2 . . . Prototype ID Bank 1 | . 1 . . . Emergency Access Points 1 | . 1 . . . Fabricator Hacks . | . . . . . Repair Station Hacks 2 | . . . 2 . Scan Component 1 | . . . 1 . Refit 1 | . . . 1 . Recycling Unit Hacks . | . . . . . Scanalyzer . | . . . . . Garrison Access Hacks . | . . . . . Unauthorized Hacks . | . . . . . Terminals . | . . . . . Fabricators . | . . . . . Repair Stations . | . . . . . Recycling Units . | . . . . . Scanalyzers . | . . . . . Garrison Access . | . . . . . Data Cores Recovered 1 | . 1 . . . Used . | . . . . . Hacking Detections 1 | . 1 . . . Full Trace Events . | . . . . . Feedback Events . | . . . . . Feedback Blocked . | . . . . . Robot Schematics Acquired . | . . . . . Robots Built . | . . . . . Authchips . | . . . . . Time . | . . . . . Total Robot Build Rating . | . . . . . Part Schematics Acquired . | . . . . . Parts Built . | . . . . . Authchips . | . . . . . Time . | . . . . . Total Part Build Rating . | . . . . . Parts Repaired . | . . . . . Time . | . . . . . Parts Recycled . | . . . . . Recycled Matter . | . . . . . Retrieved Matter . | . . . . . Retrieved Components . | . . . . . Parts Scanalyzed . | . . . . . Part Schematics Acquired . | . . . . . Parts Damaged . | . . . . . Bothacking | -11 -10 -9 -8 -8 ------------ Run | Yrd Mat Mat Mat Sto Used RIF Installer . | . . . . . Robots Hacked . | . . . . . Non-combat . | . . . . . Combat . | . . . . . Robot Hacks Applied . | . . . . . Relay Couplers Released . | . . . . . Fabnet Peak Effective % . | . . . . . Robots Rewired . | . . . . . Allies Hacked . | . . . . . Hacks Repelled . | . . . . . Allies | -11 -10 -9 -8 -8 -------- Run | Yrd Mat Mat Mat Sto Total Allies . | . . . . . Largest Group . | . . . . . Highest-Rated Group . | . . . . . Highest-Rated Ally . | . . . . . Total Orders . | . . . . . Ally Attacks . | . . . . . Total Damage . | . . . . . Kills . | . . . . . Allies Corrupted . | . . . . . Allies Melted . | . . . . . Intel | -11 -10 -9 -8 -8 ------- Run | Yrd Mat Mat Mat Sto Robot Analysis Total . | . . . . . Derelict Logs Recovered . | . . . . . Drone Launches . | . . . . . Drone Recoveries . | . . . . . Exploration | -11 -10 -9 -8 -8 ------------- Run | Yrd Mat Mat Mat Sto Turns Passed 2054 | 45 270 712 467 560 Spaces Moved 690 | 37 202 273 113 65 Core 70 | 2 . 1 2 65 Treads . | . . . . . Legs 227 | . . 116 111 . Wheels 389 | 35 202 152 . . Hover 4 | . . 4 . . Flight . | . . . . . Fastest Speed 50 | 50 90 105 260 700 Average Speed 254 | 87 93 198 396 840 Slowest Speed 900 | 90 105 900 900 900 Overloaded Moves . | . . . . . Propulsion Burnouts . | . . . . . Robots Hopped . | . . . . . Cave-ins Triggered . | . . . . . Exploration Rate (%) 19 | 3 39 23 10 20 Regions Visited 4 Branch Regions 1 Pre-discovered Areas . | . . . . . Known Exits Taken . | . . . . . Unknown Exits Taken 4 | 1 1 1 1 . Scrap Searched . | . . . . . Spaces Dug . | . . . . . Terrain Destroyed 106 | . 2 . 71 33 Melee . | . . . . . Projectile . | . . . . . AOE 106 | . 2 . 71 33 Terrain Rammed . | . . . . . Walls Destroyed . | . . . . . Machines Disabled . | . . . . . Actions | -11 -10 -9 -8 -8 --------- Run | Yrd Mat Mat Mat Sto Total 868 | 49 246 368 128 77 Wait . | . . . . . Move 686 | 36 201 272 112 65 Hop . | . . . . . Pick Up 43 | 7 9 22 4 1 Fast Attach . | . . . . . Attach 40 | 6 5 19 4 6 Detach 1 | . 1 . . . Swap 6 | . 3 1 1 1 Drop 1 | . . 1 . . Fire 86 | . 27 48 7 4 Melee 5 | . . 5 . . Ram . | . . . . . Kick . | . . . . . Crush . | . . . . . Escape Stasis . | . . . . . Rewire . | . . . . . Trap . | . . . . . Miscellaneous . | . . . . . Route ------- -11/Scrapyard -10/Materials -9/Materials -8/Materials -8/Storage History --------- Turn | Location | Event 2 | -11/Scrapyard | Met Revision 17 16 | -11/Scrapyard | Discovered new exit (range 15) 46 | -11/Scrapyard | Entered Materials 240 | -10/Materials | Lost 3 parts (1p2w) 310 | -10/Materials | Discovered new exit (range 6) 316 | -10/Materials | Entered another Materials area 316 | -9/Materials | Evolved 2 slots: Propulsion x1, Utility x1 317 | -9/Materials | Build established: Mutant 643 | -9/Materials | Core integrity fell below 50% 669 | -9/Materials | Core integrity fell below 20% 707 | -9/Materials | Lost 9 parts (2p3n1u3w) 904 | -9/Materials | Discovered new exit (range 15) 1024 | -9/Materials | Build established: Scavenger-Mutant 1028 | -9/Materials | Entered another Materials area 1028 | -8/Materials | Evolved 2 slots: Power x1, Propulsion x1 1157 | -8/Materials | Lost 3 parts (1p2n) 1279 | -8/Materials | Discovered new exit (range 15) 1495 | -8/Materials | Entered Storage 1499 | -8/Storage | Build established: Mutant 1525 | -8/Storage | Lost 4 parts (1p2n1u) 2022 | -8/Storage | Core integrity fell below 50% 2051 | -8/Storage | Core integrity fell below 20% 2055 | -8/Storage | Destroyed by S-10 Pest with Light Assault Rifle Last Messages --------------- 02024_ U-05 Engineer destroyed. 02029_ EM Shotgun destroyed. 02030_ Mni. Grenade Launcher destroyed. 02032_ U-05 Engineer lays Concrete. 02034_ K-01 Serf collects debris. 02034_ Acquired 70 matter. 02035_ S-10 Pest destroyed. 02035_ U-05 Engineer lays Concrete. 02035_ Sml. Matter Pod destroyed. 02035_ U-05 Engineer lays Concrete. 02043_ Hvy. EM Pulse Gun destroyed. 02043_ U-05 Engineer lays Concrete. 02045_ U-05 Engineer builds a Wall. 02045_ U-05 Engineer lays Concrete. 02046_ EM Shotgun destroyed. 02046_ T-07 Excavator destroyed. 02049_ U-05 Engineer builds a Door. 02051_ K-01 Serf collects debris. 02053_ U-05 Engineer lays Concrete. 02054_ U-05 Engineer builds a Wall. Map ----- +----------------------------------------------------+ | ???????????????????# """ #???????????????????? | | ???????????????????# R" #???????????????????? | | ???????????????????# """ #???????????????????? | | ???????????????????# #???????????????????? | | ???????????????????##T###/####???????????????????? | | ????????????????????##??# ########????#??????????? | | ????????????????????????# # #??? ???????????? | | ?????????????????????#### # #?? ????????????? | | ?????????????????????# + +? ?????????????? | | ?????????????????????# # # #?????????????? | | ?????????????????????# # ##+## #?????????????? | | ?????????????????????# #?????????????? | | ???????????????????###+##/ #?????????????? | | ???????????????????# # #####?????????? | | ???????????????????# + +?????????? | | ?????????????#####?# ## ##### #?????????? | | ?????????????# !# ## ####?? #?????????? | | ?????????????# [######### ##????? ????????? | | ????????????## =! ! %!##?????? ???????? | | ????????????# =%* | ##??????? ????????? | | ?????????????# ! u ##???????? ?????????? | | ?????????????# ###Y# # ##??????????????????? | | ?????????????# ???# ###???????????????????? | | ????????????????????# w #?????????????????????? | | ????????????????????# a#?????????????????????? | | ????????????????????# @u#?????????????????????? | | ????????????????????# k +?????????????????????? | | ????????????????????# #?????????????????????? | | ????????????????????# %! #?????????????????????? | | ????????????????????# #?????????????????????? | | ????????????????????# s #?????????????????????? | | ????????????????????# ! #?????????????????????? | | ????????????????????# s s#?????????????????????? | | ????????????????????# s ]#?????????????????????? | | ????????????????????# s #?????????????????????? | | ????????????????????###/##a#?????????????????????? | | ??????????????????????#%?? #?????????????????????? | | ??????????????????????#s?? #?????????????????????? | | ??????????????????????# ?? ??????????????????????? | | ?????????????????????? ??? ??????????????????????? | | ?????????????????????????? ??????????????????????? | | ?????????????????????????????????????????????????? | | ?????????????????????????????????????????????????? | | ?????????????????????????????????????????????????? | | ?????????????????????????????????????????????????? | | ?????????????????????????????????????????????????? | | ?????????????????????????????????????????????????? | | ?????????????????????????????????????????????????? | | ?????????????????????????????????????????????????? | | ?????????????????????????????????????????????????? | +----------------------------------------------------+ Best States ------------- Heat Dissipation 42 Energy Generation 18 Energy Capacity 450 Matter Stores 300 Matter Capacity 350 Sight Range 16 Terrain Scan Range 14 Terrain Scan Density 10 Evasion (%) 42 Item Schematics ----------------- None Robot Schematics ------------------ None Fabricated ------------ Nothing Alien Tech Used ----------------- None Achievements -------------- None Challenges ------------ None Game ------ Seed SensorArmoredSubcomponent Manual? 0 Play Time 00:21:20 Cumulative 11.1 hours Start 2024.03.11 @ 19:36:30 End 2024.03.11 @ 20:05:30 Sessions 1 Manual Loads 0 Difficulty Rogue Special Mode None Game No. 27 Rogue 10 Adventurer 17 Explorer 0 Win Type - Total 0 Types 0/0/0/0/0/0/0/0/0 Lore% 12 Gallery% 16 Achievement% 12 Wizard Run 0 Options --------- Layout 1 ASCII 0 Keyboard 0 Movement Mouse Keybinds 0 Fullscreen 1 Font 24/Smallcaps Map View 50x35 Zoom Use 0% Tactical HUD 1 Map Filters NONE Filters NONE Steam 1 RUN: 7465c4a1-1aac-472f-ba3c-e26863e4955b